bitfinex-derivatives/quotes_SOLF0:USTF0_20241127
["timestamp","ask_amount","ask_price","bid_price","bid_amount"]
[1732687536575,1.2626,229.79,229.73,6.44078464]
[1732687537268,2.78254,229.76,229.73,6.44078464]
[1732687538774,0.60584,229.76,229.73,6.44078464]
[1732687540275,0.60584,229.76,229.71,6.44078464]
[1732687541271,2.1769,229.74,229.71,6.44078464]
[1732687541473,6.44078464,229.77,229.69,6.44078464]
[1732687541866,6.44078464,229.77,229.67,6.44078464]
[1732687542276,1.2626,229.79,229.67,6.44078464]
[1732687542277,6.44078464,229.75,229.67,6.44078464]
[1732687542872,2.1772,229.71,229.67,6.44078464]
[1732687545474,8.52078464,229.75,229.67,6.44078464]
[1732687545673,6.44078464,229.73,229.65,6.44078464]
[1732687545882,2.1775,229.68,229.65,6.44078464]
[1732687546874,6.44078464,229.71,229.61,2.6781]
[1732687547074,8.80219085,229.7,229.62,6.44078464]
[1732687547373,2.08,229.69,229.62,6.44078464]
[1732687547968,8.52078464,229.69,229.58,2.08]
[1732687548275,2.1776,229.66,229.61,6.44078464]
[1732687548469,2.08,229.69,229.63,6.44078464]
[1732687548979,2.1778,229.64,229.63,6.44078464]
[1732687550776,8.52078464,229.69,229.59,6.44078464]
[1732687551079,6.44078464,229.67,229.59,6.44078464]
[1732687551379,2.1781,229.62,229.59,6.44078464]
[1732687553980,2.1781,229.62,229.57,1.2175]
[1732687553981,2.1781,229.62,229.61,6.44078464]
[1732687556771,6.44078464,229.65,229.57,1.2175]
[1732687556975,8.81322573,229.64,229.56,6.44078464]
[1732687558081,2.08,229.63,229.56,6.44078464]
[1732687559274,2.1783,229.59,229.56,6.44078464]
[1732687560482,2.1783,229.59,229.58,6.44078464]
[1732687562778,2.1783,229.59,229.53,2.1788]
[1732687562978,2.08,229.63,229.57,6.44078464]
[1732687563183,6.44078464,229.61,229.52,6.44078464]
[1732687563479,8.81138256,229.6,229.52,6.44078464]
[1732687564180,2.1787,229.56,229.52,6.44078464]
[1732687564384,2.08,229.63,229.54,6.44078464]
[1732687564580,2.08,229.63,229.57,6.44078464]
[1732687564885,2.08,229.63,229.59,6.44078464]
[1732687565886,2.08,229.66,229.59,6.44078464]
[1732687567188,8.8038861,229.67,229.63,6.44078464]
[1732687567483,3.3053,229.69,229.63,6.44078464]
[1732687567685,8.80224771,229.68,229.63,6.44078464]
[1732687567882,3.3053,229.69,229.63,6.44078464]
[1732687568088,3.3053,229.69,229.65,6.44078464]
[1732687569384,1.2253,229.69,229.61,6.44078464]
[1732687569587,6.44078464,229.68,229.61,6.44078464]
[1732687569981,2.1778,229.65,229.61,6.44078464]
[1732687571391,6.44078464,229.66,229.59,1.3467]
[1732687571887,2.178,229.63,229.6,6.44078464]
[1732687572185,1.2253,229.69,229.62,6.44078464]
[1732687572386,10.02712091,229.69,229.62,6.44078464]
[1732687573492,6.44078464,229.68,229.6,6.44078464]
[1732687573694,2.1779,229.64,229.6,6.44078464]
[1732687574487,6.44078464,229.66,229.59,1.3467]
[1732687575094,6.44078464,229.68,229.6,6.44078464]
[1732687575288,8.80300624,229.67,229.6,6.44078464]
[1732687575891,6.44078464,229.68,229.6,6.44078464]
[1732687576086,8.80234243,229.67,229.6,6.44078464]
[1732687576290,3.3053,229.69,229.62,6.44078464]
[1732687576491,2.1778,229.65,229.62,6.44078464]
[1732687579794,2.1775,229.67,229.62,6.44078464]
[1732687580200,2.1775,229.67,229.59,3.4267]
[1732687580201,15.18731537,229.72,229.64,6.44078464]
[1732687580497,15.18731537,229.72,229.66,6.44078464]
[1732687582099,21.62810001,229.72,229.64,6.44078464]
[1732687582294,21.62810001,229.72,229.62,6.44078464]
[1732687582295,6.44078464,229.7,229.62,6.44078464]
[1732687582698,2.1775,229.68,229.62,6.44078464]
[1732687583402,6.44078464,229.68,229.6,1.2447]
[1732687583599,6.44078464,229.66,229.59,7.78748464]
[1732687583796,6.44078464,229.66,229.59,1.3467]
[1732687585000,2.1779,229.63,229.59,1.3467]
[1732687585897,2.08,229.68,229.61,6.44078464]
[1732687586197,10.89517677,229.68,229.63,6.44078464]
[1732687586402,2.08,229.68,229.63,6.44078464]
[1732687586603,2.1775,229.67,229.63,6.44078464]
[1732687586906,2.08,229.68,229.63,6.44078464]
[1732687587705,2.08,229.68,229.61,6.44078464]
[1732687588093,10.89848482,229.68,229.61,6.44078464]
[1732687588299,2.1777,229.66,229.61,6.44078464]
[1732687588905,2.1777,229.65,229.61,6.44078464]
[1732687589203,2.1777,229.65,229.59,1.3467]
[1732687589204,6.44078464,229.67,229.59,1.3467]
[1732687589403,8.82412517,229.66,229.59,1.3467]
[1732687590902,2.1778,229.64,229.59,1.3467]
[1732687591105,6.44078464,229.67,229.59,1.3467]
[1732687591405,8.82680972,229.66,229.59,1.3467]
[1732687591607,2.178,229.63,229.59,1.3467]
[1732687592506,2.08,229.68,229.6,6.44078464]
[1732687592707,2.1778,229.64,229.6,6.44078464]
[1732687594511,2.08,229.68,229.6,6.44078464]
[1732687594708,2.08,229.68,229.59,3.525]
[1732687594709,2.08,229.68,229.64,6.44078464]
[1732687594910,8.82758998,229.7,229.64,6.44078464]
[1732687595209,8.82758998,229.7,229.62,6.44078464]
[1732687596912,6.44078464,229.69,229.6,6.44078464]
[1732687597113,8.82758998,229.68,229.6,6.44078464]
[1732687597511,2.1778,229.64,229.6,6.44078464]
[1732687598113,2.1782,229.61,229.59,1.3467]
[1732687598317,2.1782,229.61,229.54,2.08]
[1732687598318,6.44078464,229.65,229.57,6.44078464]
[1732687598511,8.82737915,229.64,229.57,6.44078464]
[1732687598810,2.1782,229.61,229.57,6.44078464]
[1732687599011,6.44078464,229.63,229.55,6.44078464]
[1732687599213,2.1784,229.58,229.53,7.76638464]
[1732687599417,2.08,229.62,229.55,6.44078464]
[1732687599823,10.90791418,229.62,229.55,6.44078464]
[1732687600117,8.82791418,229.61,229.53,7.76638464]
[1732687600323,8.82791418,229.6,229.53,7.76638464]
[1732687600617,2.1786,229.56,229.53,1.3256]
[1732687600817,2.1786,229.56,229.5,25.43576923]
[1732687601013,2.1786,229.56,229.52,6.44078464]
[1732687601219,6.44078464,229.59,229.52,6.44078464]
[1732687601415,11.00586205,229.58,229.52,6.44078464]
[1732687601619,2.1785,229.58,229.52,6.44078464]
[1732687601816,6.44078464,229.59,229.52,6.44078464]
[1732687602019,2.1786,229.57,229.52,6.44078464]
[1732687602219,6.44078464,229.61,229.52,6.44078464]
[1732687602420,6.44078464,229.61,229.51,2.179]
[1732687602421,8.82536519,229.6,229.54,6.44078464]
[1732687603220,2.1784,229.58,229.54,6.44078464]
[1732687605228,2.08,229.64,229.56,6.44078464]
[1732687605430,2.08,229.64,229.58,6.44078464]
[1732687606127,2.178,229.63,229.58,6.44078464]
[1732687607029,2.178,229.62,229.58,6.44078464]
[1732687610320,1.3245,229.66,229.6,6.44078464]
[1732687610525,2.1779,229.64,229.6,6.44078464]
[1732687610923,2.08,229.69,229.62,6.44078464]
[1732687611120,8.82798043,229.7,229.64,6.44078464]
[1732687611320,8.52078464,229.73,229.64,6.44078464]
[1732687611521,8.82672271,229.72,229.64,6.44078464]
[1732687613732,8.82672271,229.72,229.66,6.44078464]
[1732687614028,8.82672271,229.71,229.66,6.44078464]
[1732687614228,6.44078464,229.73,229.66,6.44078464]
[1732687614426,8.82405131,229.72,229.66,6.44078464]
[1732687614830,2.1773,229.7,229.66,6.44078464]
[1732687615929,2.1772,229.71,229.66,6.44078464]
[1732687616125,6.44078464,229.73,229.66,6.44078464]
[1732687616326,8.82249778,229.72,229.66,6.44078464]
[1732687616733,6.44078464,229.73,229.66,6.44078464]
[1732687617335,2.1772,229.71,229.66,6.44078464]
[1732687618237,2.1773,229.7,229.64,8.61858464]
[1732687618433,6.44078464,229.71,229.64,6.44078464]
[1732687618631,6.44078464,229.71,229.62,8.61868464]
[1732687619235,2.1774,229.69,229.62,8.61868464]
[1732687619633,2.1774,229.69,229.63,2.1779]
[1732687621136,2.1774,229.69,229.64,6.44078464]
[1732687621930,6.44078464,229.71,229.64,6.44078464]
[1732687622134,2.1774,229.69,229.64,6.44078464]
[1732687622348,6.44078464,229.71,229.64,6.44078464]
[1732687622533,8.81691284,229.7,229.64,6.44078464]
[1732687623235,2.1774,229.68,229.64,6.44078464]
[1732687624231,6.44078464,229.71,229.64,6.44078464]
[1732687624437,2.1773,229.7,229.64,6.44078464]
[1732687624641,6.44078464,229.73,229.64,6.44078464]
[1732687624838,8.8154132,229.72,229.64,6.44078464]
[1732687626245,2.1774,229.69,229.64,6.44078464]
[1732687629548,2.1775,229.68,229.64,6.44078464]
[1732687629843,6.44078464,229.71,229.62,6.44078464]
[1732687630145,2.1776,229.67,229.62,6.44078464]
[1732687630737,2.1776,229.67,229.62,8.61878464]
[1732687631440,6.44078464,229.69,229.61,1.2616]
[1732687631643,6.44078464,229.67,229.57,6.44078464]
[1732687632146,6.44078464,229.67,229.59,6.44078464]
[1732687633048,21.62078464,229.69,229.59,6.44078464]
[1732687633248,6.44078464,229.67,229.59,6.44078464]
[1732687634350,2.1781,229.62,229.59,6.44078464]
[1732687635040,2.08,229.69,229.56,3.4855]
[1732687635041,6.44078464,229.65,229.56,3.4855]
[1732687635243,6.44078464,229.65,229.56,9.92628464]
[1732687635547,2.1783,229.59,229.56,7.74768464]
[1732687635741,6.44078464,229.63,229.56,1.3069]
[1732687636143,2.1785,229.58,229.56,1.3069]
[1732687636449,6.44078464,229.63,229.56,1.3069]
[1732687636645,8.8156742,229.62,229.56,7.74768464]
[1732687636949,2.08,229.64,229.56,7.74768464]
[1732687637544,2.178,229.62,229.58,6.44078464]
[1732687637750,2.08,229.64,229.6,6.44078464]
[1732687638147,2.1776,229.66,229.62,6.44078464]
[1732687638348,2.565,229.68,229.62,6.44078464]
[1732687638547,8.81354083,229.67,229.62,6.44078464]
[1732687638747,10.99114083,229.67,229.62,6.44078464]
[1732687638956,2.08,229.69,229.62,6.44078464]
[1732687639250,2.1775,229.67,229.62,6.44078464]
[1732687640449,2.5268,229.76,229.64,6.44078464]
[1732687640646,6.44078464,229.74,229.66,6.44078464]
[1732687640846,10.8928776,229.75,229.66,6.44078464]
[1732687640847,8.8128776,229.73,229.66,6.44078464]
[1732687641051,8.8128776,229.72,229.68,6.44078464]
[1732687641249,2.08,229.75,229.68,6.44078464]
[1732687641445,10.89111442,229.75,229.68,6.44078464]
[1732687641650,10.98791442,229.75,229.7,6.44078464]
[1732687641845,2.1768,229.75,229.7,6.44078464]
[1732687642553,0.60584,229.79,229.74,6.44078464]
[1732687642749,0.60584,229.79,229.58,1.2342]
[1732687642750,0.60584,229.79,229.76,6.44078464]
[1732687645356,0.60584,229.79,229.78,6.44078464]
[1732687645846,8.79692453,229.86,229.78,6.44078464]
[1732687646052,8.52078464,229.91,229.83,6.44078464]
[1732687646250,8.79135564,229.9,229.81,10.00323713]
[1732687646453,8.79135564,229.89,229.82,2.1761]
[1732687646651,8.79135564,229.89,229.81,10.00323713]
[1732687646951,2.1754,229.9,229.82,4.2561]
[1732687648357,5.5893,229.92,229.83,2.176]
[1732687648658,3.4141,229.92,229.82,2.08]
[1732687650256,2.1754,229.9,229.82,4.2561]
[1732687650560,3.4141,229.92,229.78,2.08]
[1732687650858,2.1757,229.87,229.78,2.08]
[1732687651056,3.4141,229.92,229.79,10.00323713]
[1732687651251,8.7711184,229.91,229.79,10.00323713]
[1732687651454,2.1755,229.89,229.81,2.1762]
[1732687651653,3.4141,229.92,229.82,10.00323713]
[1732687652049,2.08,229.92,229.82,10.00323713]
[1732687653061,2.1754,229.9,229.83,2.176]
[1732687653462,2.1754,229.9,229.83,4.256]
[1732687654355,2.1752,229.92,229.84,2.1759]
[1732687654558,2.08,229.94,229.84,2.1759]
[1732687655061,2.1751,229.93,229.85,2.1758]
[1732687655453,2.1752,229.92,229.85,2.1758]
[1732687656162,2.1752,229.92,229.83,2.08]
[1732687656464,2.1751,229.93,229.83,2.08]
[1732687656658,2.08,229.97,229.83,2.08]
[1732687656659,10.00323713,229.96,229.83,2.08]
[1732687657058,2.1754,229.9,229.83,2.08]
[1732687657258,10.00323713,229.96,229.83,2.08]
[1732687657562,10.00323713,229.96,229.85,2.1758]
[1732687657764,2.1752,229.92,229.85,2.1758]
[1732687658061,10.00323713,229.96,229.85,2.1758]
[1732687658260,10.00323713,229.96,229.83,2.08]
[1732687658261,2.1751,229.94,229.86,2.1757]
[1732687658461,2.08,229.97,229.86,2.1757]
[1732687659560,2.08,229.97,229.84,10.00323713]
[1732687659561,2.08,229.97,229.87,2.1756]
[1732687660061,2.1749,229.95,229.88,2.1755]
[1732687661460,2.1749,229.95,229.88,4.2555]
[1732687661657,1.3231,229.98,229.88,4.2555]
[1732687661858,2.175,229.94,229.88,4.2555]
[1732687662459,2.1751,229.93,229.88,2.08]
[1732687663258,2.1753,229.92,229.88,2.08]
[1732687663662,11.32633713,229.98,229.85,2.1757]
[1732687664161,11.32633713,229.98,229.84,12.08323713]
[1732687664363,1.3231,229.98,229.87,10.00323713]
[1732687665362,2.1748,229.97,229.9,10.00323713]
[1732687665565,15.16964738,230.0,229.9,12.08323713]
[1732687666068,2.08,230.02,229.9,12.08323713]
[1732687666371,2.08,230.02,229.95,6.39646763]
[1732687666871,2.08,230.03,229.97,6.39646763]
[1732687667266,2.1744,230.01,229.97,6.39646763]
[1732687667867,2.08,230.03,229.97,6.39646763]
[1732687667868,2.1744,230.0,229.97,6.39646763]
[1732687669472,16.9705,230.08,229.97,6.39646763]
[1732687669473,3.8705,230.08,229.97,6.39646763]
[1732687669672,6.39646763,230.05,229.97,6.39646763]
[1732687670367,8.47646763,230.05,229.97,6.39646763]
[1732687670868,5.9505,230.08,229.99,6.39646763]
[1732687671074,12.34696763,230.08,229.99,6.39646763]
[1732687672074,2.1741,230.03,229.99,6.39646763]
[1732687672673,2.1739,230.06,229.99,6.39646763]
[1732687672873,12.34696763,230.08,229.99,6.39646763]
[1732687674274,8.93416763,230.08,229.99,6.39646763]
[1732687674477,11.01416763,230.08,230.01,6.39646763]
[1732687676280,2.1738,230.06,230.01,6.39646763]
[1732687676481,2.08,230.1,230.03,6.39646763]
[1732687676883,13.1,230.15,230.07,6.39646763]
[1732687677080,19.49646763,230.15,230.07,6.39646763]
[1732687677284,2.08,230.16,229.92,3.39421599]
[1732687677285,13.1,230.1,229.92,3.39421599]
[1732687677586,6.39646763,230.07,229.98,6.39646763]
[1732687678286,2.1742,230.03,229.98,6.39646763]
[1732687678482,2.1742,230.03,229.98,8.47646763]
[1732687680280,1.59868,230.09,229.98,6.39646763]
[1732687680281,6.39646763,230.05,229.98,6.39646763]
[1732687680490,6.39646763,230.05,229.96,6.39646763]
[1732687680682,6.39646763,230.05,229.96,8.47646763]
[1732687680884,19.49646763,230.03,229.91,2.5448]
[1732687681080,19.49646763,230.03,229.93,6.39646763]
[1732687681282,19.49646763,230.03,229.95,6.39646763]
[1732687682984,2.08,230.05,229.95,6.39646763]
[1732687683186,19.49646763,230.04,229.95,6.39646763]
[1732687683490,19.49646763,230.04,229.95,8.47646763]
[1732687684190,2.1745,229.99,229.95,8.47646763]
[1732687687091,2.1742,230.02,229.97,6.39646763]
[1732687687290,1.3068,230.09,229.99,6.39646763]
[1732687687489,6.39646763,230.07,229.99,6.39646763]
[1732687687690,8.77473201,230.06,229.99,6.39646763]
[1732687688090,6.39646763,230.05,229.97,6.39646763]
[1732687688289,2.1744,230.0,229.95,8.47646763]
[1732687689085,2.1744,230.0,229.96,2.08]
[1732687690795,2.1745,229.99,229.96,2.08]
[1732687691093,6.39646763,230.01,229.91,2.5448]
[1732687691297,2.1748,229.97,229.94,2.08]
[1732687691498,2.1748,229.97,229.94,8.47646763]
[1732687691997,6.39646763,230.03,229.94,8.47646763]
[1732687692194,6.39646763,230.03,229.96,6.39646763]
[1732687692589,2.1745,229.99,229.96,6.39646763]
[1732687692789,6.39646763,230.03,229.95,2.08]
[1732687692989,8.79369572,230.02,229.95,2.08]
[1732687693393,6.39646763,230.01,229.94,8.47646763]
[1732687693594,6.39646763,229.97,229.91,1.2876]
[1732687693797,6.39646763,229.97,229.91,2.08]
[1732687694005,2.1751,229.94,229.88,2.1755]
[1732687694191,6.39646763,229.97,229.89,25.2975804]
[1732687694390,13.1,230.04,229.92,6.39646763]
[1732687694589,6.39646763,230.02,229.94,6.39646763]
[1732687694899,6.39646763,230.02,229.94,8.47646763]
[1732687695195,8.79982874,230.01,229.94,8.47646763]
[1732687695498,6.39646763,230.02,229.94,8.47646763]
[1732687696399,2.08,230.05,229.96,6.39646763]
[1732687696594,6.39646763,230.04,229.96,6.39646763]
[1732687696796,2.1743,230.02,229.96,6.39646763]
[1732687697994,6.39646763,230.04,229.96,6.39646763]
[1732687698203,2.1743,230.01,229.96,6.39646763]
[1732687698402,6.39646763,230.02,229.94,8.47646763]
[1732687698704,8.80720742,230.01,229.94,8.47646763]
[1732687699301,2.1745,229.99,229.94,8.47646763]
[1732687699602,6.39646763,230.02,229.94,8.47646763]
[1732687699902,8.80986516,230.01,229.94,8.47646763]
[1732687701302,2.1745,230.0,229.94,8.47646763]
[1732687701508,6.39646763,230.02,229.94,8.47646763]
[1732687701701,8.81465086,230.01,229.95,2.06]
[1732687702206,10.98905086,230.01,229.95,2.06]
[1732687702506,8.81465086,230.0,229.95,2.06]
[1732687702807,6.39646763,230.02,229.95,2.06]
[1732687703099,8.81720544,230.01,229.95,2.06]
[1732687703802,6.39646763,229.98,229.93,2.06]
[1732687704003,6.39646763,229.98,229.9,7.70376763]
[1732687704198,8.82026473,229.97,229.91,2.06]
[1732687704916,8.82026473,229.97,229.9,2.06]
[1732687704917,6.39646763,229.96,229.9,2.06]
[1732687705205,8.82026473,229.95,229.9,2.06]
[1732687705398,2.1751,229.93,229.9,2.06]
[1732687705999,2.175,229.95,229.9,2.06]
[1732687706707,2.175,229.94,229.9,2.06]
[1732687709604,2.175,229.94,229.91,6.39646763]
[1732687711300,2.175,229.94,229.89,25.3929804]
[1732687711301,6.39646763,229.96,229.89,25.2775804]
[1732687711501,2.1752,229.92,229.89,25.2775804]
[1732687711707,2.1752,229.92,229.89,2.06]
[1732687712103,2.1752,229.92,229.89,8.45646763]
[1732687712311,6.39646763,229.98,229.89,8.45646763]
[1732687712502,2.1751,229.94,229.89,8.45646763]
[1732687712907,2.1751,229.94,229.89,10.63186763]
[1732687714211,2.1751,229.94,229.9,6.39646763]
[1732687716911,2.06,230.03,229.89,4.2354]
[1732687716912,14.3591,230.07,229.92,6.39646763]
[1732687717214,14.3591,230.07,229.89,2.06]
[1732687717215,6.39646763,230.01,229.93,6.39646763]
[1732687717519,2.1746,229.98,229.93,6.39646763]
[1732687717711,8.8230974,229.97,229.93,6.39646763]
[1732687717914,8.8230974,229.96,229.93,6.39646763]
[1732687718113,6.39646763,230.01,229.93,6.39646763]
[1732687718308,8.82321233,230.0,229.93,6.39646763]
[1732687718717,2.1746,229.98,229.93,6.39646763]
[1732687718916,8.82321233,229.97,229.93,6.39646763]
[1732687720114,2.1747,229.97,229.93,6.39646763]
[1732687721913,2.1748,229.96,229.92,2.1751]
[1732687722116,2.1748,229.96,229.92,8.57156763]
[1732687723017,6.39646763,230.0,229.92,6.39646763]
[1732687723219,2.175,229.94,229.92,6.39646763]
[1732687723516,2.175,229.94,229.9,6.39646763]
[1732687724521,2.175,229.94,229.92,6.39646763]
[1732687726823,2.1748,229.97,229.93,2.1751]
[1732687727027,8.83243787,229.96,229.93,2.1751]
[1732687728528,11.00723787,229.96,229.92,8.57156763]
[1732687728723,8.83243787,229.95,229.92,8.57156763]
[1732687729426,2.1747,229.97,229.92,8.57156763]
[1732687729624,8.83222085,229.96,229.92,8.57156763]
[1732687730126,11.00712085,229.96,229.92,6.39646763]
[1732687730329,8.83222085,229.95,229.92,6.39646763]
[1732687730625,2.06,230.01,229.92,6.39646763]
[1732687730828,2.1748,229.96,229.92,6.39646763]
[1732687731129,8.83263279,229.95,229.92,6.39646763]
[1732687732427,8.83263279,229.95,229.94,6.39646763]
[1732687732627,2.1746,229.98,229.94,6.39646763]
[1732687732829,2.1746,229.98,229.96,6.39646763]
[1732687733024,11.00709561,229.97,229.96,6.39646763]
[1732687733227,2.1747,229.97,229.96,6.39646763]
[1732687733728,2.1747,229.97,229.94,8.45646763]
[1732687734737,2.1746,229.98,229.94,8.45646763]
[1732687735035,8.83320564,229.97,229.94,8.45646763]
[1732687735830,11.00790564,229.97,229.94,8.45646763]
[1732687736135,8.83320564,229.96,229.94,8.45646763]
[1732687736333,2.1744,230.01,229.95,2.1748]
[1732687736541,8.83372912,230.0,229.96,6.39646763]
[1732687736833,8.83372912,229.99,229.96,6.39646763]
[1732687737134,8.83372912,229.98,229.96,6.39646763]
[1732687737338,0.27654,230.04,229.96,6.39646763]
[1732687737739,18.6464084,230.04,229.96,6.39646763]
[1732687737939,2.1744,230.01,229.96,6.39646763]
[1732687738135,8.83375919,230.0,229.96,6.39646763]
[1732687738336,8.83375919,230.0,229.96,8.57126763]
[1732687738738,8.83375919,230.0,229.94,2.06]
[1732687738940,8.83375919,230.0,229.95,8.57136763]
[1732687740439,8.83375919,230.0,229.95,2.1749]
[1732687740640,8.83375919,230.0,229.96,6.39646763]
[1732687742647,8.83375919,230.0,229.95,6.39646763]
[1732687742850,8.83375919,230.0,229.94,2.06]
[1732687743051,8.83375919,229.99,229.94,2.06]
[1732687743354,6.39646763,230.01,229.94,2.06]
[1732687743355,2.1747,229.97,229.94,2.06]
[1732687743548,8.83375919,229.96,229.93,6.39646763]
[1732687743747,16.4512,230.06,229.92,2.06]
[1732687743748,8.83375919,229.95,229.92,2.06]
[1732687743949,8.83534626,229.94,229.92,2.06]
[1732687744149,6.39646763,229.99,229.92,2.06]
[1732687744350,8.83576323,229.98,229.92,2.06]
[1732687745250,2.1748,229.96,229.92,2.06]
[1732687745443,8.83576323,229.95,229.92,2.06]
[1732687746250,2.1748,229.96,229.93,6.39646763]
[1732687749550,2.1748,229.96,229.94,6.39646763]
[1732687750251,2.1747,229.97,229.94,6.39646763]
[1732687750554,6.39646763,230.01,229.94,6.39646763]
[1732687750756,2.1747,229.97,229.94,6.39646763]
[1732687751761,2.1747,229.97,229.92,4.2351]
[1732687752054,2.1747,229.97,229.93,6.39646763]
[1732687752245,6.39646763,230.0,229.86,1.3264]
[1732687752452,2.1752,229.92,229.89,6.39646763]
[1732687752657,6.39646763,229.98,229.89,6.39646763]
[1732687752854,8.8353885,229.97,229.89,6.39646763]
[1732687753150,2.1751,229.93,229.89,6.39646763]
[1732687753455,6.39646763,229.98,229.89,6.39646763]
[1732687753648,8.83606619,229.97,229.89,6.39646763]
[1732687754252,2.1749,229.95,229.89,6.39646763]
[1732687754551,6.39646763,229.98,229.89,6.39646763]
[1732687754750,8.83657254,229.97,229.89,6.39646763]
[1732687755654,2.175,229.94,229.89,6.39646763]
[1732687757052,2.1751,229.93,229.89,6.39646763]
[1732687758458,2.1751,229.93,229.91,6.39646763]
[1732687760457,6.39646763,229.98,229.89,6.39646763]
[1732687760653,18.73328827,229.97,229.86,4.2357]
[1732687760849,2.1753,229.91,229.88,6.39646763]
[1732687761056,2.1753,229.91,229.86,4.2357]
[1732687761256,2.1753,229.91,229.87,6.39646763]
[1732687762153,9.70216763,229.96,229.87,6.39646763]
[1732687762458,2.1752,229.92,229.87,8.57206763]
[1732687762959,2.1752,229.92,229.89,6.39646763]
[1732687765459,3.3057,229.96,229.91,6.39646763]
[1732687765460,2.175,229.94,229.91,6.39646763]
[1732687767655,6.39646763,230.02,229.93,6.39646763]
[1732687767862,6.39646763,230.02,229.91,2.06]
[1732687767863,18.50109435,230.01,229.91,2.06]
[1732687768066,8.83511166,230.0,229.93,6.39646763]
[1732687768259,11.00961166,229.99,229.95,6.39646763]
[1732687768463,8.83511166,229.98,229.95,6.39646763]
[1732687768659,8.83511166,229.97,229.95,6.39646763]
[1732687768961,6.39646763,230.02,229.95,6.39646763]
[1732687769262,8.83487695,230.01,229.95,6.39646763]
[1732687769466,2.1746,229.99,229.95,6.39646763]
[1732687769667,8.83487695,229.98,229.95,6.39646763]
[1732687769965,2.1745,230.0,229.95,6.39646763]
[1732687770170,6.39646763,230.02,229.91,2.06]
[1732687770363,8.83240869,230.01,229.95,6.39646763]
[1732687771369,2.1746,229.98,229.95,6.39646763]
[1732687774470,2.1746,229.98,229.93,6.39646763]
[1732687777282,2.1746,229.98,229.95,6.39646763]
[1732687777576,2.06,230.03,229.97,6.39646763]
[1732687777973,2.1744,230.01,229.97,6.39646763]
[1732687778171,8.82812077,230.0,229.97,6.39646763]
[1732687779081,11.00252077,230.0,229.97,6.39646763]
[1732687779271,2.1744,230.0,229.97,6.39646763]
[1732687779478,2.1744,230.0,229.95,8.57136763]
[1732687780071,2.1744,230.0,229.97,6.39646763]
[1732687786479,2.1744,230.0,229.95,2.1749]
[1732687786681,2.1744,230.0,229.95,8.57136763]
[1732687787380,2.1743,230.01,229.95,8.57136763]
[1732687787579,2.06,230.03,229.95,8.57136763]
[1732687787780,10.88054953,230.03,229.95,8.57136763]
[1732687788082,8.82054953,230.02,229.95,8.57136763]
[1732687788274,2.06,230.03,229.95,8.57136763]
[1732687788475,10.87996226,230.03,229.95,8.57136763]
[1732687788781,8.81996226,230.02,229.95,8.57136763]
[1732687788983,2.06,230.03,229.95,8.57136763]
[1732687789186,10.87996698,230.03,229.95,8.57136763]
[1732687789489,2.1744,230.0,229.95,8.57136763]
[1732687797284,33.94,230.22,229.85,1.2147]
[1732687797285,314.774966,230.2,229.99,6.39646763]
[1732687797485,6.39646763,230.07,229.97,6.39646763]
[1732687797682,6.39646763,230.05,229.96,2.06]
[1732687797885,6.39646763,230.01,229.95,1.2334]
[1732687799393,2.1744,230.0,229.95,1.2334]
[1732687799792,2.1743,230.02,229.95,1.2334]
[1732687799993,2.1743,230.02,229.85,2.13128478]
[1732687799994,6.39646763,229.97,229.86,1.74107527]
[1732687800285,6.39646763,229.95,229.87,9.54476405]
[1732687800486,6.39646763,229.95,229.87,8.45646763]
[1732687801291,6.39646763,229.95,229.88,2.1755]
[1732687801486,6.39646763,229.95,229.88,4.2355]
[1732687801795,6.39646763,230.0,229.91,6.39646763]
[1732687802989,6.39646763,230.0,229.93,6.39646763]
[1732687802990,2.1745,230.0,229.93,6.39646763]
[1732687804094,2.1745,230.0,229.93,8.45646763]
[1732687804399,3.4537,230.02,229.95,6.39646763]
[1732687806403,2.1743,230.01,229.95,6.39646763]
[1732687807493,2.1743,230.01,229.93,2.06]
[1732687807494,15.59330215,230.07,229.99,6.39646763]
[1732687807700,15.22059262,230.06,229.99,6.39646763]
[1732687807902,6.39646763,230.06,229.99,6.39646763]
[1732687808603,2.174,230.04,229.99,6.39646763]
[1732687809403,2.1739,230.05,230.01,6.39646763]
[1732687809799,15.59330215,230.07,230.01,6.39646763]